[Event "Late-Titled-Tuesday-Blitz-January-16-2024"]
[Site "Chess.com"]
[Date "2024.01.16"]
[Round "9"]
[White "DeArron_Fox"]
[Black "NMJeevanK"]
[Result "0-1"]
[WhiteElo "2457"]
[BlackElo "2586"]
[TimeControl "180+1"]
[EndTime "15:47:01 PST"]
[Termination "NMJeevanK won by resignation"]

1. d4 {[%clk 0:03:00.9]} 1... d5 {[%clk 0:03:00.2]} 2. c4 {[%clk 0:03:01.3]}
2... e5 {[%clk 0:03:00.2]} 3. dxe5 {[%clk 0:02:49.3]} 3... d4 {[%clk 0:02:59.9]}
4. Nf3 {[%clk 0:02:48.3]} 4... Nc6 {[%clk 0:02:29.5]} 5. Nbd2 {[%clk 0:02:10.7]}
5... Nge7 {[%clk 0:02:26.3]} 6. Nb3 {[%clk 0:02:10]} 6... Nf5 {[%clk 0:02:22.1]}
7. e4 {[%clk 0:02:05]} 7... dxe3 {[%clk 0:02:19.1]} 8. Qxd8+ {[%clk 0:01:58.7]}
8... Kxd8 {[%clk 0:02:08.7]} 9. Bxe3 {[%clk 0:01:59.1]} 9... Nxe3 {[%clk
0:02:02.8]} 10. fxe3 {[%clk 0:02:00]} 10... Bb4+ {[%clk 0:02:03]} 11. Kf2 {[%clk
0:01:57.5]} 11... Bg4 {[%clk 0:01:56.4]} 12. a3 {[%clk 0:01:12.4]} 12... Be7
{[%clk 0:01:53.3]} 13. Rd1+ {[%clk 0:00:30.4]} 13... Kc8 {[%clk 0:01:51.5]} 14.
Nbd4 {[%clk 0:00:19.7]} 14... Nxe5 {[%clk 0:01:46.8]} 15. Nxe5 {[%clk 0:00:17]}
15... Bxd1 {[%clk 0:01:45.8]} 16. Bd3 {[%clk 0:00:17.6]} 16... Ba4 {[%clk
0:01:29.4]} 17. Bf5+ {[%clk 0:00:10.4]} 17... Kb8 {[%clk 0:01:29]} 18. b3 {[%clk
0:00:05.3]} 18... Be8 {[%clk 0:01:28.6]} 19. Rd1 {[%clk 0:00:05.8]} 19... Bd6
{[%clk 0:01:27.7]} 20. Nef3 {[%clk 0:00:02.6]} 20... g6 {[%clk 0:01:28]} 21. Bh3
{[%clk 0:00:02.4]} 21... f5 {[%clk 0:01:28.3]} 22. b4 {[%clk 0:00:02.6]} 22...
b6 {[%clk 0:01:27.3]} 23. c5 {[%clk 0:00:03.2]} 23... bxc5 {[%clk 0:01:27.1]}
24. bxc5 {[%clk 0:00:04.1]} 24... Bxc5 {[%clk 0:01:26.7]} 25. Rb1+ {[%clk
0:00:03.3]} 25... Bb6 {[%clk 0:01:27.1]} 26. Ne5 {[%clk 0:00:02]} 26... Kc8
{[%clk 0:01:13.1]} 27. Ndc6 {[%clk 0:00:02]} 27... Bxc6 {[%clk 0:01:09.1]} 28.
Nxc6 {[%clk 0:00:02.9]} 28... Kd7 {[%clk 0:01:09.5]} 29. Ne5+ {[%clk 0:00:03.2]}
29... Ke6 {[%clk 0:01:09.7]} 30. Nd3 {[%clk 0:00:02.4]} 30... Rhd8 {[%clk
0:01:09]} 31. Nf4+ {[%clk 0:00:02]} 31... Kf6 {[%clk 0:01:08.9]} 32. Kf3 {[%clk
0:00:01.8]} 32... Rd2 {[%clk 0:01:04.3]} 33. g4 {[%clk 0:00:01.7]} 33... fxg4+
{[%clk 0:01:03.9]} 34. Bxg4 {[%clk 0:00:02.6]} 34... Re8 {[%clk 0:01:02.1]} 35.
Rb3 {[%clk 0:00:02]} 35... Rxh2 {[%clk 0:00:57.7]} 36. Rc3 {[%clk 0:00:02.2]}
36... Rd2 {[%clk 0:00:48.9]} 37. Rc6+ {[%clk 0:00:02.2]} 37... Rd6 {[%clk
0:00:49]} 38. Rc3 {[%clk 0:00:01.9]} 38... h5 {[%clk 0:00:47.5]} 39. Bh3 {[%clk
0:00:01.8]} 39... Re5 {[%clk 0:00:44.8]} 40. e4 {[%clk 0:00:01.9]} 40... Kg5
{[%clk 0:00:41]} 41. Nd5 {[%clk 0:00:01.7]} 41... Rexd5 {[%clk 0:00:35.1]} 42.
exd5 {[%clk 0:00:02.6]} 42... Rxd5 {[%clk 0:00:35.9]} 43. Bf1 {[%clk 0:00:03.1]}
43... Rc5 {[%clk 0:00:34.6]} 44. Rd3 {[%clk 0:00:02.1]} 44... Rf5+ {[%clk
0:00:34.6]} 45. Kg2 {[%clk 0:00:01.7]} 45... Rf2+ {[%clk 0:00:34.6]} 46. Kg1
{[%clk 0:00:02]} 46... Rd2+ {[%clk 0:00:31]} 47. Kh1 {[%clk 0:00:01.8]} 47...
Rxd3 {[%clk 0:00:31.4]} 48. Bxd3 {[%clk 0:00:02.7]} 48... Kf6 {[%clk 0:00:31]}
49. Kg2 {[%clk 0:00:02.4]} 49... g5 {[%clk 0:00:31.6]} 50. Kf3 {[%clk
0:00:02.5]} 50... Bc5 {[%clk 0:00:25.7]} 51. a4 {[%clk 0:00:01.9]} 51... g4+
{[%clk 0:00:25.6]} 52. Ke4 {[%clk 0:00:02.2]} 52... Kg5 {[%clk 0:00:22.9]} 53.
Kd5 {[%clk 0:00:02.2]} 53... Bd6 {[%clk 0:00:20.2]} 54. Kc6 {[%clk 0:00:02.1]}
54... h4 {[%clk 0:00:19.1]} 55. a5 {[%clk 0:00:02.2]} 55... Kf4 {[%clk
0:00:18.4]} 56. Kb7 {[%clk 0:00:02.4]} 56... g3 {[%clk 0:00:18.1]} 57. Bf1
{[%clk 0:00:01.9]} 57... Bc5 {[%clk 0:00:17.2]} 58. Kxc7 {[%clk 0:00:01.7]}
58... Kf3 {[%clk 0:00:17.4]} 59. Kc6 {[%clk 0:00:02.3]} 59... Be3 {[%clk
0:00:17.4]} 60. Bh3 {[%clk 0:00:01]} 60... g2 {[%clk 0:00:17.5]} 61. Bxg2+
{[%clk 0:00:01.9]} 61... Kxg2 {[%clk 0:00:18.2]} 0-1

[Event "Late-Titled-Tuesday-Blitz-January-16-2024"]
[Site "Chess.com"]
[Date "2024.01.16"]
[Round "9"]
[White "Sargsyan_Shant"]
[Black "MITerryble"]
[Result "1-0"]
[WhiteElo "2898"]
[BlackElo "3017"]
[TimeControl "180+1"]
[EndTime "15:47:02 PST"]
[Termination "Sargsyan_Shant won on time"]

1. c4 {[%clk 0:03:00.9]} 1... b6 {[%clk 0:02:59.4]} 2. d4 {[%clk 0:03:00.2]}
2... Bb7 {[%clk 0:02:59.5]} 3. Nc3 {[%clk 0:03:00.8]} 3... e6 {[%clk 0:02:59.8]}
4. a3 {[%clk 0:03:01]} 4... f5 {[%clk 0:02:56.4]} 5. Nf3 {[%clk 0:03:00.4]} 5...
Nf6 {[%clk 0:02:56.8]} 6. d5 {[%clk 0:03:00.7]} 6... g6 {[%clk 0:02:51.4]} 7. g3
{[%clk 0:02:57.9]} 7... Qe7 {[%clk 0:02:48.1]} 8. Bf4 {[%clk 0:02:45]} 8... d6
{[%clk 0:02:41.2]} 9. dxe6 {[%clk 0:02:44.3]} 9... Bxf3 {[%clk 0:02:25.7]} 10.
exf3 {[%clk 0:02:42.7]} 10... Qxe6+ {[%clk 0:02:26.2]} 11. Be2 {[%clk
0:02:40.6]} 11... Bg7 {[%clk 0:02:22.8]} 12. O-O {[%clk 0:02:40.7]} 12... O-O
{[%clk 0:02:23.2]} 13. Re1 {[%clk 0:02:41.4]} 13... Nbd7 {[%clk 0:02:18.9]} 14.
Nb5 {[%clk 0:02:36.7]} 14... Rfc8 {[%clk 0:02:13.9]} 15. Rc1 {[%clk 0:02:13.2]}
15... Qf7 {[%clk 0:02:04.5]} 16. c5 {[%clk 0:02:03.8]} 16... Nxc5 {[%clk
0:00:56.5]} 17. Bxd6 {[%clk 0:02:03.6]} 17... cxd6 {[%clk 0:00:50.5]} 18. Nxd6
{[%clk 0:02:02]} 18... Qf8 {[%clk 0:00:51]} 19. b4 {[%clk 0:01:42]} 19... Rd8
{[%clk 0:00:36]} 20. bxc5 {[%clk 0:01:40.2]} 20... Kh8 {[%clk 0:00:36.6]} 21.
Qb3 {[%clk 0:01:39]} 21... Rd7 {[%clk 0:00:36.6]} 22. Bb5 {[%clk 0:01:38.8]}
22... Rc7 {[%clk 0:00:35.3]} 23. Bc4 {[%clk 0:01:27]} 23... h6 {[%clk
0:00:31.6]} 24. cxb6 {[%clk 0:01:21.3]} 24... axb6 {[%clk 0:00:32.4]} 25. Nf7+
{[%clk 0:01:14.1]} 25... Kh7 {[%clk 0:00:32.1]} 26. Ne5 {[%clk 0:01:13.8]} 26...
Rxa3 {[%clk 0:00:17.1]} 27. Qxb6 {[%clk 0:01:13.9]} 27... Re7 {[%clk 0:00:11.7]}
28. f4 {[%clk 0:01:01.2]} 28... Ra8 {[%clk 0:00:11.7]} 29. Bf1 {[%clk
0:00:55.4]} 29... Rb8 {[%clk 0:00:11.9]} 30. Qc6 {[%clk 0:00:56.1]} 30... Rbe8
{[%clk 0:00:09.7]} 31. Red1 {[%clk 0:00:51.3]} 31... Re6 {[%clk 0:00:09.5]} 32.
Qb7 {[%clk 0:00:48.2]} 32... R8e7 {[%clk 0:00:08.4]} 33. Qb3 {[%clk 0:00:48.2]}
33... Ne4 {[%clk 0:00:07.9]} 34. Bc4 {[%clk 0:00:33.8]} 34... Rd6 {[%clk
0:00:05.1]} 35. Nf3 {[%clk 0:00:23.6]} 35... Rxd1+ {[%clk 0:00:04.4]} 36. Rxd1
{[%clk 0:00:24.5]} 36... Qc8 {[%clk 0:00:03.1]} 37. Rc1 {[%clk 0:00:13.5]} 37...
Qa8 {[%clk 0:00:01.9]} 38. Bd5 {[%clk 0:00:12.7]} 38... Qa7 {[%clk 0:00:02.4]}
39. Qc2 {[%clk 0:00:08.9]} 39... Nf6 {[%clk 0:00:02.4]} 40. Bc4 {[%clk
0:00:08.8]} 40... Ng4 {[%clk 0:00:02.1]} 41. h3 {[%clk 0:00:06.9]} 41... Nf6
{[%clk 0:00:02.7]} 42. Kg2 {[%clk 0:00:07.4]} 42... Ne4 {[%clk 0:00:02.7]} 43.
Bd3 {[%clk 0:00:07.6]} 43... Nf6 {[%clk 0:00:02.3]} 44. Bxf5 {[%clk 0:00:07.5]}
44... gxf5 {[%clk 0:00:01]} 45. Qxf5+ {[%clk 0:00:08.4]} 45... Kg8 {[%clk
0:00:01.9]} 46. Rc8+ {[%clk 0:00:08.2]} 46... Kf7 {[%clk 0:00:02.3]} 47. Ne5+
{[%clk 0:00:05.8]} 47... Rxe5 {[%clk 0:00:02.7]} 48. fxe5 {[%clk 0:00:06.7]}
48... Qb7+ {[%clk 0:00:03.3]} 49. Kh2 {[%clk 0:00:06.9]} 49... Qd5 {[%clk
0:00:01.7]} 50. Rc7+ {[%clk 0:00:06.1]} 50... Kg8 {[%clk 0:00:01.8]} 51. Rxg7+
{[%clk 0:00:06.2]} 51... Kxg7 {[%clk 0:00:01.7]} 52. exf6+ {[%clk 0:00:06.8]}
1-0

[Event "Late-Titled-Tuesday-Blitz-January-16-2024"]
[Site "Chess.com"]
[Date "2024.01.16"]
[Round "9"]
[White "Arifarsky"]
[Black "maximnovik"]
[Result "0-1"]
[WhiteElo "2707"]
[BlackElo "2567"]
[TimeControl "180+1"]
[EndTime "15:47:03 PST"]
[Termination "maximnovik won by resignation"]

1. Nf3 {[%clk 0:03:00.9]} 1... Nf6 {[%clk 0:02:59.2]} 2. d4 {[%clk 0:03:00.5]}
2... g6 {[%clk 0:02:59.6]} 3. c4 {[%clk 0:03:00.1]} 3... Bg7 {[%clk 0:03:00.1]}
4. g3 {[%clk 0:03:00.5]} 4... c6 {[%clk 0:02:59.3]} 5. Bg2 {[%clk 0:03:00.9]}
5... d5 {[%clk 0:02:59.5]} 6. O-O {[%clk 0:02:50.6]} 6... O-O {[%clk 0:02:58.8]}
7. Nc3 {[%clk 0:02:41.8]} 7... dxc4 {[%clk 0:02:58]} 8. a4 {[%clk 0:02:28.8]}
8... Na6 {[%clk 0:02:57.5]} 9. a5 {[%clk 0:02:21.5]} 9... Ne8 {[%clk 0:02:52.5]}
10. Qa4 {[%clk 0:02:13.8]} 10... Nd6 {[%clk 0:02:51]} 11. e4 {[%clk 0:02:12.4]}
11... Nc7 {[%clk 0:02:38.4]} 12. Be3 {[%clk 0:01:48]} 12... Bd7 {[%clk
0:02:03.5]} 13. Ne5 {[%clk 0:01:39.5]} 13... Be6 {[%clk 0:01:28.1]} 14. f4
{[%clk 0:01:33.7]} 14... f6 {[%clk 0:01:26]} 15. Nf3 {[%clk 0:01:25.8]} 15... f5
{[%clk 0:01:14.3]} 16. e5 {[%clk 0:01:01.3]} 16... Ndb5 {[%clk 0:01:07.8]} 17.
Ng5 {[%clk 0:00:54.9]} 17... Nxc3 {[%clk 0:01:06.6]} 18. bxc3 {[%clk 0:00:54]}
18... Bd5 {[%clk 0:01:06.4]} 19. Nf3 {[%clk 0:00:45.7]} 19... b5 {[%clk
0:01:01.3]} 20. Qa3 {[%clk 0:00:41.2]} 20... a6 {[%clk 0:00:58.3]} 21. h4 {[%clk
0:00:37.5]} 21... Qd7 {[%clk 0:00:57.3]} 22. h5 {[%clk 0:00:37.4]} 22... gxh5
{[%clk 0:00:52.5]} 23. Kf2 {[%clk 0:00:37.4]} 23... Be4 {[%clk 0:00:50.7]} 24.
Rh1 {[%clk 0:00:35.9]} 24... Qe8 {[%clk 0:00:42.1]} 25. Rh4 {[%clk 0:00:33.8]}
25... Nd5 {[%clk 0:00:36.4]} 26. Rah1 {[%clk 0:00:34.2]} 26... Rb8 {[%clk
0:00:32.6]} 27. Bd2 {[%clk 0:00:32.8]} 27... e6 {[%clk 0:00:15.8]} 28. Rxh5
{[%clk 0:00:25.9]} 28... h6 {[%clk 0:00:15.9]} 29. Qc5 {[%clk 0:00:21.6]} 29...
Rf7 {[%clk 0:00:15.5]} 30. Ne1 {[%clk 0:00:15.5]} 30... Bf8 {[%clk 0:00:14.2]}
31. Rxh6 {[%clk 0:00:12.7]} 31... Bxh6 {[%clk 0:00:13.6]} 32. Rxh6 {[%clk
0:00:12.7]} 32... Qf8 {[%clk 0:00:13.6]} 33. Rxe6 {[%clk 0:00:11.9]} 33... Qxc5
{[%clk 0:00:13.3]} 34. dxc5 {[%clk 0:00:12.4]} 34... Bxg2 {[%clk 0:00:11.1]} 35.
Nxg2 {[%clk 0:00:12.3]} 35... b4 {[%clk 0:00:11.5]} 36. cxb4 {[%clk 0:00:12.4]}
36... c3 {[%clk 0:00:11.8]} 37. Bc1 {[%clk 0:00:10.2]} 37... Rxb4 {[%clk
0:00:12]} 38. Ne3 {[%clk 0:00:08.8]} 38... Rb1 {[%clk 0:00:12.1]} 39. Nxd5
{[%clk 0:00:07.4]} 39... cxd5 {[%clk 0:00:12]} 40. Be3 {[%clk 0:00:06.5]} 40...
c2 {[%clk 0:00:10.8]} 41. Rxa6 {[%clk 0:00:05.8]} 41... c1=Q {[%clk 0:00:09.8]}
42. Bxc1 {[%clk 0:00:05]} 42... Rxc1 {[%clk 0:00:10]} 43. Rc6 {[%clk 0:00:05.3]}
43... d4 {[%clk 0:00:09.6]} 44. Ke2 {[%clk 0:00:05.3]} 44... Rc3 {[%clk
0:00:08.7]} 45. e6 {[%clk 0:00:04.7]} 45... Rh7 {[%clk 0:00:07.9]} 46. Rc8+
{[%clk 0:00:03.5]} 46... Kg7 {[%clk 0:00:06.8]} 47. e7 {[%clk 0:00:04.1]} 47...
Rh2+ {[%clk 0:00:04.7]} 48. Kd1 {[%clk 0:00:04.1]} 48... Ra3 {[%clk 0:00:04.6]}
49. Rb8 {[%clk 0:00:01.3]} 49... Ra1+ {[%clk 0:00:03.6]} 0-1

[Event "Late-Titled-Tuesday-Blitz-January-16-2024"]
[Site "Chess.com"]
[Date "2024.01.16"]
[Round "9"]
[White "pr1105"]
[Black "cristiancamilosoto"]
[Result "0-1"]
[WhiteElo "2271"]
[BlackElo "2403"]
[TimeControl "180+1"]
[EndTime "15:47:06 PST"]
[Termination "cristiancamilosoto won on time"]

1. e4 {[%clk 0:03:00.2]} 1... c5 {[%clk 0:02:59.6]} 2. Nf3 {[%clk 0:03:00.3]}
2... e6 {[%clk 0:02:59.5]} 3. d4 {[%clk 0:03:00.3]} 3... cxd4 {[%clk 0:03:00.3]}
4. Nxd4 {[%clk 0:03:01.2]} 4... Nf6 {[%clk 0:03:00.2]} 5. Nc3 {[%clk 0:03:01.7]}
5... Nc6 {[%clk 0:02:59.8]} 6. g3 {[%clk 0:02:57.8]} 6... Bb4 {[%clk 0:02:58.6]}
7. Bg2 {[%clk 0:02:57.8]} 7... d5 {[%clk 0:02:58.9]} 8. exd5 {[%clk 0:02:48.7]}
8... exd5 {[%clk 0:02:59.8]} 9. O-O {[%clk 0:02:25]} 9... O-O {[%clk 0:02:56.4]}
10. Bg5 {[%clk 0:02:23.5]} 10... Bxc3 {[%clk 0:02:54.6]} 11. bxc3 {[%clk
0:02:23.2]} 11... h6 {[%clk 0:02:54.7]} 12. Bxf6 {[%clk 0:02:14.4]} 12... Qxf6
{[%clk 0:02:55.6]} 13. Bxd5 {[%clk 0:02:14.7]} 13... Nxd4 {[%clk 0:02:46.8]} 14.
cxd4 {[%clk 0:02:15.6]} 14... Rd8 {[%clk 0:02:45.9]} 15. c4 {[%clk 0:02:15.3]}
15... Be6 {[%clk 0:02:43.9]} 16. Qb3 {[%clk 0:01:55.3]} 16... Bxd5 {[%clk
0:02:32.9]} 17. cxd5 {[%clk 0:01:56.2]} 17... Rab8 {[%clk 0:02:31.6]} 18. Rac1
{[%clk 0:01:45.8]} 18... Rd7 {[%clk 0:02:30.4]} 19. Rfd1 {[%clk 0:01:30.7]}
19... Rbd8 {[%clk 0:02:28.6]} 20. Rc5 {[%clk 0:01:23.5]} 20... b6 {[%clk
0:02:19.5]} 21. Rb5 {[%clk 0:01:22]} 21... Rd6 {[%clk 0:02:09.8]} 22. a4 {[%clk
0:01:15.9]} 22... Qf5 {[%clk 0:02:05.4]} 23. a5 {[%clk 0:01:12.1]} 23... Rxd5
{[%clk 0:02:05.3]} 24. Rxd5 {[%clk 0:01:10.3]} 24... Qxd5 {[%clk 0:02:04.9]} 25.
Qxd5 {[%clk 0:01:08.9]} 25... Rxd5 {[%clk 0:02:04.7]} 26. axb6 {[%clk
0:01:09.8]} 26... axb6 {[%clk 0:02:05]} 27. Rb1 {[%clk 0:01:10.2]} 27... b5
{[%clk 0:02:05.3]} 28. Rb4 {[%clk 0:01:09.9]} 28... f5 {[%clk 0:02:04.5]} 29. f4
{[%clk 0:01:02.9]} 29... Kf7 {[%clk 0:02:04.3]} 30. Kf2 {[%clk 0:01:03.3]} 30...
Ke6 {[%clk 0:02:04.4]} 31. Ke3 {[%clk 0:01:04]} 31... Kd6 {[%clk 0:02:04.7]} 32.
Rb3 {[%clk 0:01:01.5]} 32... Kc6 {[%clk 0:02:01.8]} 33. Rc3+ {[%clk 0:01:00]}
33... Kb6 {[%clk 0:02:02.1]} 34. Rc8 {[%clk 0:01:00.3]} 34... Rd7 {[%clk
0:01:52.8]} 35. Kd3 {[%clk 0:00:54.3]} 35... Ra7 {[%clk 0:01:50.6]} 36. d5
{[%clk 0:00:48.5]} 36... Ra3+ {[%clk 0:01:49.2]} 37. Kd4 {[%clk 0:00:48.8]}
37... Ra2 {[%clk 0:01:48.9]} 38. d6 {[%clk 0:00:38]} 38... b4 {[%clk 0:01:41.5]}
39. Kd5 {[%clk 0:00:31]} 39... Kb7 {[%clk 0:01:31.1]} 40. Rc4 {[%clk 0:00:28.3]}
40... Rd2+ {[%clk 0:01:22.2]} 41. Ke6 {[%clk 0:00:28.6]} 41... b3 {[%clk
0:01:22.5]} 42. d7 {[%clk 0:00:17.5]} 42... b2 {[%clk 0:01:16.9]} 43. Rb4+
{[%clk 0:00:17.1]} 43... Kc7 {[%clk 0:01:17]} 44. Rxb2 {[%clk 0:00:17.2]} 44...
Rd6+ {[%clk 0:01:14.4]} 45. Kxf5 {[%clk 0:00:16.1]} 45... Rxd7 {[%clk
0:01:14.8]} 46. h4 {[%clk 0:00:13.6]} 46... Rd6 {[%clk 0:01:11.9]} 47. Ra2
{[%clk 0:00:08.8]} 47... Rf6+ {[%clk 0:01:07.7]} 48. Ke5 {[%clk 0:00:07.5]}
48... Rg6 {[%clk 0:01:08]} 49. Ra3 {[%clk 0:00:06.6]} 49... Kd7 {[%clk
0:01:08.2]} 50. h5 {[%clk 0:00:06.9]} 50... Re6+ {[%clk 0:01:06.3]} 51. Kf5
{[%clk 0:00:06]} 51... Rf6+ {[%clk 0:01:06.5]} 52. Kg4 {[%clk 0:00:06.4]} 52...
Ke7 {[%clk 0:01:06.7]} 53. Ra7+ {[%clk 0:00:06.5]} 53... Kf8 {[%clk 0:01:07]}
54. Rb7 {[%clk 0:00:07.2]} 54... Kg8 {[%clk 0:01:07.1]} 55. Kf3 {[%clk
0:00:07.7]} 55... Ra6 {[%clk 0:01:07]} 56. Rc7 {[%clk 0:00:07.4]} 56... Ra4
{[%clk 0:01:06.8]} 57. Kg4 {[%clk 0:00:07.4]} 57... Ra5 {[%clk 0:01:06.6]} 58.
Rc6 {[%clk 0:00:07.8]} 58... Ra4 {[%clk 0:01:05.2]} 59. Re6 {[%clk 0:00:08.3]}
59... Ra5 {[%clk 0:01:05.3]} 60. Re5 {[%clk 0:00:09]} 60... Ra3 {[%clk
0:01:04.4]} 61. Re4 {[%clk 0:00:09.3]} 61... Rb3 {[%clk 0:01:03.9]} 62. Kh4
{[%clk 0:00:09.6]} 62... Kh7 {[%clk 0:01:03.9]} 63. g4 {[%clk 0:00:08.9]} 63...
Rb1 {[%clk 0:01:04]} 64. g5 {[%clk 0:00:08.7]} 64... Rh1+ {[%clk 0:01:03.9]} 65.
Kg4 {[%clk 0:00:09.2]} 65... Rg1+ {[%clk 0:01:04]} 66. Kf5 {[%clk 0:00:09.8]}
66... hxg5 {[%clk 0:01:01.6]} 67. fxg5 {[%clk 0:00:10.5]} 67... Rh1 {[%clk
0:01:01.5]} 68. h6 {[%clk 0:00:06.6]} 68... gxh6 {[%clk 0:00:52.1]} 69. Re7+
{[%clk 0:00:06.7]} 69... Kg8 {[%clk 0:00:52.4]} 70. Kg6 {[%clk 0:00:05.9]} 70...
Kf8 {[%clk 0:00:52.8]} 71. Rf7+ {[%clk 0:00:06.2]} 71... Ke8 {[%clk 0:00:53.1]}
72. Rh7 {[%clk 0:00:02.3]} 72... h5 {[%clk 0:00:44.8]} 73. Ra7 {[%clk
0:00:01.3]} 73... h4 {[%clk 0:00:43.4]} 0-1

[Event "Late-Titled-Tuesday-Blitz-January-16-2024"]
[Site "Chess.com"]
[Date "2024.01.16"]
[Round "9"]
[White "VladimirKramnik"]
[Black "Jospem"]
[Result "0-1"]
[WhiteElo "2919"]
[BlackElo "3094"]
[TimeControl "180+1"]
[EndTime "15:47:09 PST"]
[Termination "Jospem won on time"]

1. e4 {[%clk 0:03:00.9]} 1... c5 {[%clk 0:02:57.9]} 2. Nf3 {[%clk 0:03:00.9]}
2... d6 {[%clk 0:02:58.6]} 3. d4 {[%clk 0:03:00.6]} 3... cxd4 {[%clk 0:02:59.5]}
4. Nxd4 {[%clk 0:03:00.5]} 4... a6 {[%clk 0:03:00.4]} 5. c4 {[%clk 0:02:59.5]}
5... e6 {[%clk 0:03:00.9]} 6. Nc3 {[%clk 0:02:59.5]} 6... Nf6 {[%clk 0:02:59.8]}
7. Be2 {[%clk 0:02:58.9]} 7... Be7 {[%clk 0:02:59.2]} 8. Be3 {[%clk 0:02:57.9]}
8... b6 {[%clk 0:02:57.7]} 9. O-O {[%clk 0:02:54.6]} 9... Bb7 {[%clk 0:02:57.7]}
10. f3 {[%clk 0:02:53.7]} 10... Nbd7 {[%clk 0:02:58.3]} 11. a4 {[%clk
0:02:51.8]} 11... Qb8 {[%clk 0:02:56.8]} 12. a5 {[%clk 0:02:42.9]} 12... bxa5
{[%clk 0:02:57.7]} 13. Nb3 {[%clk 0:02:42.6]} 13... O-O {[%clk 0:02:58.1]} 14.
Nxa5 {[%clk 0:02:41.3]} 14... Rc8 {[%clk 0:02:53.7]} 15. b4 {[%clk 0:02:20.4]}
15... Ne5 {[%clk 0:02:14.1]} 16. Qb3 {[%clk 0:02:09]} 16... Qc7 {[%clk
0:02:02.2]} 17. Rfc1 {[%clk 0:01:53.1]} 17... Rcb8 {[%clk 0:01:59.4]} 18. Qd1
{[%clk 0:01:45.3]} 18... Nfd7 {[%clk 0:01:52.1]} 19. b5 {[%clk 0:01:39.1]} 19...
Nc5 {[%clk 0:01:44.5]} 20. f4 {[%clk 0:01:24.5]} 20... Ned7 {[%clk 0:01:44.2]}
21. Bf3 {[%clk 0:01:18.5]} 21... e5 {[%clk 0:01:14.5]} 22. Nxb7 {[%clk
0:01:12.9]} 22... Qxb7 {[%clk 0:01:13.2]} 23. Nd5 {[%clk 0:00:52.4]} 23... Bf8
{[%clk 0:01:00.3]} 24. Rab1 {[%clk 0:00:52.1]} 24... a5 {[%clk 0:00:57.4]} 25.
f5 {[%clk 0:00:39.1]} 25... a4 {[%clk 0:00:47.8]} 26. Rc2 {[%clk 0:00:34.3]}
26... Nb6 {[%clk 0:00:48.1]} 27. Bxc5 {[%clk 0:00:27.2]} 27... dxc5 {[%clk
0:00:49]} 28. f6 {[%clk 0:00:27]} 28... g6 {[%clk 0:00:47.2]} 29. Qe2 {[%clk
0:00:21.7]} 29... Nxd5 {[%clk 0:00:46.9]} 30. exd5 {[%clk 0:00:20.8]} 30... Bd6
{[%clk 0:00:46.8]} 31. Be4 {[%clk 0:00:20.9]} 31... Qd7 {[%clk 0:00:43.6]} 32.
Rf1 {[%clk 0:00:19.5]} 32... Rb6 {[%clk 0:00:35]} 33. Ra2 {[%clk 0:00:19.2]}
33... Qd8 {[%clk 0:00:34]} 34. Ra3 {[%clk 0:00:14]} 34... Bf8 {[%clk 0:00:33.6]}
35. Qf3 {[%clk 0:00:13.1]} 35... Bh6 {[%clk 0:00:29.8]} 36. h4 {[%clk
0:00:11.3]} 36... Bf4 {[%clk 0:00:24.5]} 37. g3 {[%clk 0:00:10.8]} 37... Rxf6
{[%clk 0:00:25.2]} 38. gxf4 {[%clk 0:00:10]} 38... Rxf4 {[%clk 0:00:26.1]} 39.
Qg2 {[%clk 0:00:10]} 39... Qxh4 {[%clk 0:00:24.9]} 40. Rxf4 {[%clk 0:00:07.2]}
40... Qxf4 {[%clk 0:00:25.8]} 41. Ra1 {[%clk 0:00:04.6]} 41... Qe3+ {[%clk
0:00:25.5]} 42. Kh1 {[%clk 0:00:04.1]} 42... a3 {[%clk 0:00:21.9]} 43. d6 {[%clk
0:00:03.8]} 43... Rd8 {[%clk 0:00:19.5]} 44. b6 {[%clk 0:00:03.8]} 44... Rxd6
{[%clk 0:00:12.9]} 45. b7 {[%clk 0:00:04.1]} 45... Rb6 {[%clk 0:00:13.6]} 46.
Bd5 {[%clk 0:00:04.4]} 46... Kg7 {[%clk 0:00:09.1]} 47. Qf3 {[%clk 0:00:04.4]}
47... Qd4 {[%clk 0:00:03.3]} 48. Qxf7+ {[%clk 0:00:03.7]} 48... Kh6 {[%clk
0:00:03.3]} 49. Qf8+ {[%clk 0:00:03.8]} 49... Kh5 {[%clk 0:00:04]} 50. Qf3+
{[%clk 0:00:03.6]} 50... Kh4 {[%clk 0:00:04.8]} 51. Rg1 {[%clk 0:00:01.8]} 51...
Qf4 {[%clk 0:00:03.4]} 52. Qxf4+ {[%clk 0:00:01.9]} 52... exf4 {[%clk
0:00:04.3]} 53. Ra1 {[%clk 0:00:01.7]} 53... Rb3 {[%clk 0:00:04.8]} 54. Rxa3
{[%clk 0:00:01.9]} 54... Rb1+ {[%clk 0:00:05.5]} 55. Kg2 {[%clk 0:00:01.5]}
55... g5 {[%clk 0:00:06.4]} 56. Kf3 {[%clk 0:00:01.9]} 56... Rb2 {[%clk
0:00:07.3]} 57. Ke4 {[%clk 0:00:02]} 57... g4 {[%clk 0:00:08.2]} 0-1